Cogmind - Beta 10.2 @@@ ROGUE MODE // 2022.02.05 @ 19:33:16 Player: lumberblack Result: Self-destructed Performance ------------- Evolutions (1) 500 Regions Visited (3) 600 Robots Destroyed (43) 215 Value Destroyed (903) 903 Prototype IDs (4) 80 Alien Tech Used (0) 0 Bonus (81) 81 TOTAL SCORE: 2379 Bonus ------- Follower Combat Kills 81 Cogmind --------- Core Integrity 350/400 Matter 300/300 Energy 258/265 System Corruption 0% Temperature Cool (0) Movement Treading (180) Ox1 Location -9/Materials Parts ------- > --- POWER (1) -------- Improved Ion Engine > --- PROPULSION (2) --- Light Treads Light Treads > --- UTILITY (4) ------ Improved Heat Sink High-capacity Storage Unit Hardened Medium Armor Plating Hardened Medium Armor Plating > --- WEAPON (2) ------- Beamcaster Makeshift Hammer > --- INVENTORY (12) --- Light Angular Momentum Engine Light Treads Light Treads Large Storage Unit Large Battery (300) High-capacity Matter Pod (200) Hardened Medium Armor Plating Hardened Medium Armor Plating Improved Light Cannon EMP Blaster EMP Blaster Peak State ------------ > --- POWER ------------ Improved Ion Engine > --- PROPULSION ------- Light Treads Light Treads > --- UTILITY ---------- Improved Heat Sink High-capacity Storage Unit Hardened Medium Armor Plating Hardened Medium Armor Plating > --- WEAPON ----------- Beamcaster Makeshift Hammer > --- INVENTORY -------- Light Angular Momentum Engine Light Treads Light Treads Large Storage Unit Large Battery High-capacity Matter Pod Hardened Medium Armor Plating Hardened Medium Armor Plating Improved Light Cannon EMP Blaster EMP Blaster [Rating: 25] Favorites ----------- Power Ion Engine Engine Ion Engine Power Core Light Nuclear Core Propulsion Armored Wheel Treads Light Treads Leg Aluminum Leg Wheel Armored Wheel Utility Large Storage Unit Device Improved Heat Sink Storage Large Storage Unit Processor Targeting Computer Protection Hardened Medium Armor Plating Weapon Light Assault Rifle Energy Gun Beamcaster Energy Cannon Beam Cannon Ballistic Gun Light Assault Rifle Launcher Grenade Launcher Special Weapon Mining Laser Impact Weapon Makeshift Hammer Build | -11 -10 -10 -9 ------- Run | Scr Mat Min Mat Slots Evolved 2 | . . . 2 Power . | . . . . Propulsion . | . . . . Utility 2 | . . . 2 Weapon . | . . . . Parts Attached 52 | 4 23 5 20 Power 6 | 1 2 1 2 Engine 5 | 1 1 1 2 Core 1 | . 1 . . Reactor . | . . . . Propulsion 15 | 2 5 . 8 Treads 8 | 1 2 . 5 Leg . | . . . . Wheel 7 | 1 3 . 3 Hover . | . . . . Flight . | . . . . Utility 12 | 1 3 1 7 Device 4 | 1 1 1 1 Storage 3 | . 1 . 2 Processor 1 | . 1 . . Hackware . | . . . . Protection 4 | . . . 4 Artifact . | . . . . Weapon 19 | . 13 3 3 Energy Gun 4 | . 2 1 1 Energy Cannon 5 | . 2 2 1 Ballistic Gun 3 | . 3 . . Ballistic Cannon . | . . . . Launcher 4 | . 4 . . Special Weapon 2 | . 2 . . Impact Weapon 1 | . . . 1 Slashing Weapon . | . . . . Piercing Weapon . | . . . . Special Melee Weapon . | . . . . Unidentified Prototypes . | . . . . Parts Lost 1 | . . . 1 Power . | . . . . Propulsion . | . . . . Utility . | . . . . Weapon 1 | . . . 1 Highest Loss Streak 1 | . . . 1 Average Slot Usage (%) 99 | . 99 100 99 Engine 13 | . 13 14 11 Treads 7 | . 8 . 12 Wheel 18 | . 18 28 9 Device 6 | . . 14 13 Storage 13 | . 14 14 12 Processor 7 | . 13 . . Protection 4 | . . . 18 Energy Gun 4 | . . 5 10 Energy Cannon 5 | . 2 7 10 Ballistic Gun 10 | . 18 . . Launcher 6 | . 5 15 . Naked Turns . | . . . . Heaviest Build 64 | 12 28 30 64 Greatest Support 40 | 20 40 24 40 Greatest Overweight (x) 5 | 1 1 1 5 Average Overweight (x) . | . . 1 1 Largest Inventory Capacity 12 | 6 10 10 12 Average Capacity 9 | 6 8 10 11 Most Carried 12 | 6 10 10 12 Average Carried 8 | 4 7 9 11 Final Capacity 12 | 6 10 10 12 Final Carried 11 | 4 10 10 11 Class Distribution -------------------- 85% | Mutant 14% | Scavenger-Mutant Dominant Class ---------------- Mutant | -10/Materials Mutant | -10/Mines Scavenger-Mutant | -9/Materials Resources | -11 -10 -10 -9 ----------- Run | Scr Mat Min Mat Matter Collected 1383 | 276 650 120 337 Remotely . | . . . . Salvage Created 1439 | 125 568 222 524 Parts 91 | 11 41 13 26 Haulers Intercepted 3 | . 2 . 1 Recyclers Shooed 4 | . 4 . . Parts Field Recycled . | . . . . Retrieved Matter . | . . . . Parts Self-Destructed . | . . . . Prevented . | . . . . Kills | -11 -10 -10 -9 ------- Run | Scr Mat Min Mat Combat Hostiles Destroyed 24 | . 10 5 9 Melee 2 | . . . 2 Guns 8 | . 2 . 6 Cannons 3 | . . 2 1 AOE 11 | . 8 3 . Classes Destroyed 9 | 2 6 . 1 Worker 3 | . 2 1 . Tunneler 4 | 3 . 1 . Hauler 3 | . 2 . 1 Recycler 5 | 1 3 1 . Mechanic 1 | . 1 . . Watcher 3 | . 3 . . Swarmer 9 | . 6 3 . Grunt 9 | . 4 2 3 Sentry 6 | . . . 6 Best Kill Streak 6 | 3 6 3 3 Combat Bots Only 5 | . 5 3 3 Max Kills in Single Turn 3 | 1 3 2 1 Gunslinging . | . . . . Exploded 3 | . 3 2 . Melee 1 | . . . 1 Uniques/NPCs Destroyed . | . . . . Combat | -11 -10 -10 -9 -------- Run | Scr Mat Min Mat Damage Taken 850 | . 282 112 456 Core 160 | . 90 20 50 Absorbed by Shields . | . . . . Core Remaining (%) 78 | 100 . 56 . Volleys Fired 118 | 18 66 14 20 Largest 2 | 2 2 2 2 Hottest 135 | 40 120 135 135 Shots Fired 222 | 36 118 28 40 Gun 151 | 36 91 4 20 Cannon 53 | . 15 18 20 Launcher 15 | . 9 6 . Special 3 | . 3 . . Kinetic 117 | 36 81 . . Thermal 90 | . 28 22 40 Explosive 15 | . 9 6 . Electromagnetic . | . . . . Robot Hit Streak 12 | 4 11 4 12 Robot Miss Streak 5 | 2 3 1 5 Penetration Max . | . . . . Secondary Targets 1 | . 1 . . Max Gunslinging Chain 1 | . 1 . . Shots Hit Robots 127 | 19 61 12 35 Core Hits 66 | 8 36 9 13 Critical Hits . | . . . . Critical Kills . | . . . . Critical Parts Destroyed . | . . . . Melee Attacks 11 | . . . 11 Impact 11 | . . . 11 Slashing . | . . . . Piercing . | . . . . Sneak Attacks . | . . . . Combat Hostiles . | . . . . Follow-up Attacks . | . . . . Damage Inflicted 2558 | 163 1325 320 750 Guns 1065 | 163 489 65 348 Cannons 318 | . 35 105 178 Explosions 948 | . 798 150 . Melee 224 | . . . 224 Ramming 3 | . 3 . . Kinetic 565 | 163 402 . . Thermal 818 | . 122 170 526 Explosive 948 | . 798 150 . Electromagnetic . | . . . . Impact 224 | . . . 224 Slashing . | . . . . Piercing . | . . . . Highest Corruption 2 | . 2 2 . Average Corruption 2 | . 2 2 . Corruption Purged . | . . . . Effects 5 | . 1 4 . Message Errors 4 | . 1 3 . Energy Discharges 1 | . . 1 . Overload Shots . | . . . . Overflow Damage 67 | . 67 . . Projectiles . | . . . . Explosions 67 | . 67 . . Melee . | . . . . Knockbacks 1 | . . . 1 Impact 1 | . . . 1 Kinetic . | . . . . Secondary . | . . . . Self-Inflicted Damage 77 | . 77 . . Shots 1 | . 1 . . Rammed 1 | . 1 . . Targets Rammed 1 | . 1 . . Kicked . | . . . . Crushed . | . . . . Highest Temperature 252 | . 180 239 252 Average Temperature 65 | . 42 95 75 Received Heat Transfer 342 | . 93 39 210 Siege Activations . | . . . . Robots Corrupted . | . . . . Combat Hostiles . | . . . . Parts Fried . | . . . . Impact Corruptions . | . . . . Robots Melted . | . . . . Combat Hostiles . | . . . . Parts Melted 2 | . . . 2 Heat Transferred 1628 | . 333 333 962 Parts Sabotaged . | . . . . Parts Stolen . | . . . . Parts Stripped . | . . . . Power Chain Reactions . | . . . . Missiles Intercepted . | . . . . Alert | -11 -10 -10 -9 ------- Run | Scr Mat Min Mat Peak Influence 321 | 20 192 227 321 Initial 74 | . 13 74 59 Average 97 | 12 59 126 165 Maximum Alert Level 1 | . . 1 1 Low Security (%) 92 | 100 100 92 75 Level 1 7 | . . 7 24 Level 2 . | . . . . Level 3 . | . . . . Level 4 . | . . . . Level 5 . | . . . . High Security . | . . . . Max Security . | . . . . Squads Dispatched 4 | . 2 . 2 Investigation 3 | . 2 . 1 Extermination . | . . . . Reinforcement 1 | . . . 1 Assault . | . . . . Garrison . | . . . . Intercept . | . . . . Construction Impeded . | . . . . Haulers Reinforced . | . . . . Stealth | -11 -10 -10 -9 --------- Run | Scr Mat Min Mat Distress Signals 4 | . 2 . 2 Communications Jammed . | . . . . Distress Signals . | . . . . Times Spotted 54 | . 29 8 17 Peak Tracking Total 5 | . 5 3 5 Tactical Retreats 4 | . 3 . 1 Traps | -11 -10 -10 -9 ------- Run | Scr Mat Min Mat Traps Triggered 1 | . 1 . . Indirectly . | . . . . Trap Hack Attempts . | . . . . Triggered . | . . . . Disarmed . | . . . . Reprogrammed . | . . . . Reused . | . . . . Traps Extracted . | . . . . Installed . | . . . . Triggered . | . . . . Machines | -11 -10 -10 -9 ---------- Run | Scr Mat Min Mat Machines Disabled 7 | . 4 1 2 Max in Single Turn 1 | . 1 . 1 Machines Sabotaged . | . . . . Garrisons Compromised . | . . . . Overloaded Fab Kills . | . . . . Fab Network Shutdowns . | . . . . Hacking | -11 -10 -10 -9 --------- Run | Scr Mat Min Mat Machines Accessed 11 | . 7 . 4 Terminals 8 | . 5 . 3 Fabricators . | . . . . Repair Stations . | . . . . Recycling Units 2 | . 2 . . Scanalyzers 1 | . . . 1 Garrison Access . | . . . . Total Hacks 33 | . 17 . 16 Successful 20 | . 6 . 14 Failed 13 | . 11 . 2 Catastrophic 2 | . 2 . . Database Lockouts . | . . . . Manual 17 | . 8 . 9 Terminals 26 | . 13 . 13 Fabricators . | . . . . Repair Stations . | . . . . Recycling Units 4 | . 4 . . Scanalyzers 3 | . . . 3 Garrison Access . | . . . . Terminal Hacks 10 | . 2 . 8 Robot Analysis 2 | . . . 2 Prototype ID Bank 2 | . 1 . 1 Terminal Index 2 | . 1 . 1 Locate Traps 2 | . . . 2 Hauler Manifests 1 | . . . 1 Zone Layout 1 | . . . 1 Fabricator Hacks . | . . . . Repair Station Hacks . | . . . . Recycling Unit Hacks . | . . . . Scanalyzer 3 | . . . 3 Insert Component 1 | . . . 1 Analyze 2 | . . . 2 Garrison Access Hacks . | . . . . Unauthorized Hacks 7 | . 4 . 3 Terminals 4 | . 1 . 3 Track 3 | . 1 . 2 Operators 1 | . . . 1 Fabricators . | . . . . Repair Stations . | . . . . Recycling Units 3 | . 3 . . Recyclers 1 | . 1 . . Tunnel 2 | . 2 . . Scanalyzers . | . . . . Garrison Access . | . . . . Data Cores Recovered . | . . . . Used . | . . . . Hacking Detections 11 | . 7 . 4 Full Trace Events 1 | . . . 1 Feedback Events . | . . . . Feedback Blocked . | . . . . Robot Schematics Acquired . | . . . . Robots Built . | . . . . Matter . | . . . . Time . | . . . . Total Robot Build Rating . | . . . . Part Schematics Acquired 1 | . . . 1 Parts Built . | . . . . Matter . | . . . . Time . | . . . . Total Part Build Rating . | . . . . Parts Repaired . | . . . . Time . | . . . . Parts Recycled . | . . . . Recycled Matter . | . . . . Retrieved Matter . | . . . . Retrieved Components . | . . . . Parts Scanalyzed 1 | . . . 1 Part Schematics Acquired 1 | . . . 1 Parts Damaged 1 | . . . 1 Bothacking | -11 -10 -10 -9 ------------ Run | Scr Mat Min Mat Used RIF Installer . | . . . . Robots Hacked . | . . . . Non-combat . | . . . . Combat . | . . . . Robot Hacks Applied . | . . . . Relay Couplers Released . | . . . . Robots Rewired . | . . . . Allies Hacked . | . . . . Hacks Repelled . | . . . . Allies | -11 -10 -10 -9 -------- Run | Scr Mat Min Mat Total Allies 4 | . . 4 . Largest Group 3 | . . 3 3 Highest-Rated Group 40 | . . 40 40 Highest-Rated Ally 31 | . . 31 16 Total Orders 1 | . . . 1 STAY 1 | . . . 1 Ally Attacks 28 | . . 28 . Total Damage 406 | . . 406 . Kills 5 | . . 5 . Allies Corrupted . | . . . . Allies Melted . | . . . . Intel | -11 -10 -10 -9 ------- Run | Scr Mat Min Mat Robot Analysis Total 2 | . . . 2 Derelict Logs Recovered 3 | . . 3 . Drone Launches . | . . . . Drone Recoveries . | . . . . Exploration | -11 -10 -10 -9 ------------- Run | Scr Mat Min Mat Turns Passed 3740 | 115 1953 782 890 Spaces Moved 2052 | 45 1008 666 333 Core . | . . . . Treads 164 | . 106 . 58 Legs 18 | 18 . . . Wheels 1870 | 27 902 666 275 Hover . | . . . . Flight . | . . . . Fastest Speed 80 | 80 80 100 100 Average Speed 103 | 99 100 100 123 Slowest Speed 180 | 120 160 100 180 Overloaded Moves . | . . . . Propulsion Burnouts . | . . . . Robots Hopped . | . . . . Cave-ins Triggered . | . . . . Exploration Rate (%) 58 | 5 98 97 34 Regions Visited 3 Branch Regions 1 Pre-discovered Areas 4 | . 2 2 . Known Exits Taken . | . . . . Unknown Exits Taken 3 | 1 1 1 . Scrap Searched 1 | . . 1 . Spaces Dug 15 | . 15 . . Terrain Destroyed 106 | . 64 42 . Melee . | . . . . Projectile 3 | . 3 . . AOE 103 | . 61 42 . Terrain Rammed . | . . . . Walls Destroyed . | . . . . Machines Disabled . | . . . . Actions | -11 -10 -10 -9 --------- Run | Scr Mat Min Mat Total 3454 | 87 1844 754 769 Wait 1128 | 15 706 60 347 Move 2049 | 44 1007 665 333 Hop . | . . . . Pick Up 41 | 2 17 5 17 Fast Attach 14 | 1 10 . 3 Attach 8 | 2 1 1 4 Detach 3 | . 3 . . Swap 30 | 1 12 4 13 Drop 51 | 4 21 5 21 Fire 118 | 18 66 14 20 Melee 11 | . . . 11 Ram . | . . . . Kick . | . . . . Crush 1 | . 1 . . Escape Stasis . | . . . . Rewire . | . . . . Trap . | . . . . Miscellaneous . | . . . . Route ------- -11/Scrapyard -10/Materials (discovered 5 exits: *Mat x3 / [*Min x2]) -10/Mines (discovered 2 exits: *Mat x2) -9/Materials (discovered 1 exit: [*Mat]) History --------- Turn | Location | Event 12 | -11/Scrapyard | Discovered new exit (range 3) 116 | -11/Scrapyard | Entered Materials 305 | -10/Materials | Build established: Mutant 313 | -10/Materials | Discovered new exit (range 15) 825 | -10/Materials | Discovered new exit (range 10) 920 | -10/Materials | Discovered new exit (range 13) 994 | -10/Materials | Discovered new exit (range 7) 1707 | -10/Materials | Discovered new exit (range 16) 2069 | -10/Materials | Entered Mines 2100 | -10/Mines | A weapon hastily lodged in a ceiling crevice suddenly fell to the ground 2287 | -10/Mines | Discovered new exit (range 11) 2344 | -10/Mines | Received a Mining Laser from a helpful Derelict 2450 | -10/Mines | Learned location of Recycling (-7) 2457 | -10/Mines | Learned Materials garrison access intel 2621 | -10/Mines | Assisted by bots powering up and referring to "LRC-V3" 2695 | -10/Mines | Discovered new exit (range 12) 2704 | -10/Mines | Learned location of Mines (-9) 2851 | -10/Mines | Entered Materials 2851 | -9/Materials | Accompanied by 3 allies 2851 | -9/Materials | Evolved 2 slots: Utility x2 3420 | -9/Materials | Build established: Scavenger-Mutant 3438 | -9/Materials | Discovered new exit (range 16) 3741 | -9/Materials | Self-destructed Last Messages --------------- Retrieving Zone 6W layout... Downloaded map data. >>Traps(Locate) Found 4 traps in 1 array: 4x Blade Trap Map updated. 03687_ ALERT: Hostiles spotted, dispatching reinforcements to Terminal M008. 03704_ G-34 Mercenary destroyed. 03706_ K-01 Serf collects debris. 03715_ G-47 Trooper knocked back. 03716_ K-01 Serf collects debris. 03725_ G-47 Trooper destroyed. 03731_ Beam Cannon destroyed. 03731_ Y-45 Defender destroyed. 03733_ Acquired 5 matter. 03734_ K-01 Serf collects debris. 03735_ Dropped Ion Engine. 03737_ Acquired 20 matter. 03739_ K-01 Serf collects debris. Map ----- +----------------------------------------------------+ | ^ """ """ #???????????????????????????????? | | ^ ^ ^ #???????????????????????????????? | | ^ ^ #???????????????????????????????? | | """"" #???????????????????????????????? | | ^ """""" "" #???????????????????????????????? | | """ """ #???????????????????????????????? | | +????????#??????????????????????? | | #???????? ##????????????????????? | | #?+##???# ????????????????????? | | !! ????+ T ????????????????????? | | [%############### #????# ?^??????????????????? | | #?# ### ###??# ^???????????????????? | | #?# !# / #??# ^??????o?????????????? | | #?# """"*!#!! #??# ""? #????????????????? | | #?# """" !+% #??# """ #????????????????? | | #?# """ !#!= #??# """ #????????????????? | | #?# # #??# # #????????????? | | #?# ## ##??# ^""" # #??##????????? | | #####?# [! ## #???# """ + +????????? | | ??????#+########## #???# w""" # #?????????? | | ????### ###??????# #???# # #?????????? | | ????# #??????# ########+### #?????????? | | ##### #??????# g #?????????? | | #??????# %= #?????????? | | ##### #??????# !=uu #?????????? | | ????# #??????###+####@########+###+#?????????? | | ????### ###??????# #%% ## ????????????? | | ??????# #????????# """ #*[=## ????????????? | | ??????# #????????# """ #k k## ????????????? | | ?######+###??????# """ #!! ## """"????????????? | | ?# #??????# #!! ## """"????????????? | | ?# #??????# "T" # ## """"????????????? | | ## #??????######## ## ????????????? | | # #?????????????###### ????????????? | | + #??????????????????########????????????? | | # #??????????????????????????????????????? | | # #??????????????????????????????????????? | | # #??????????????????????????????????????? | | # #??????????????????????????????????????? | | ##########??????????????????????????????????????? | | #???????????????????????????????????????????????? | | #???????????????????????????????????????????????? | | #???????????????????????????????????????????????? | | #???????????????????????????????????????????????? | | #???????????????????????????????????????????????? | | #???????????????????????????????????????????????? | | #???????????????????????????????????????????????? | | ##???????????????????????????????????????????????? | | ?????????????????????????????????????????????????? | | ?????????????????????????????????????????????????? | +----------------------------------------------------+ Best States ------------- Heat Dissipation 42 Energy Generation 14 Energy Capacity 265 Matter Stores 386 Matter Capacity 500 Sight Range 16 Terrain Scan Range 16 Terrain Scan Density 10 Armor Coverage 450 Evasion (%) 44 Targeting Accuracy 5 Recoil Reduction 2 Item Schematics ----------------- Lgt. Angular Momentum Engine | -9/Materials | Scanalyzed Robot Schematics ------------------ None Fabricated ------------ Nothing Alien Tech Used ----------------- None Achievements -------------- None Challenges ------------ None Game ------ Seed StormPhasingCutter Manual? 0 Play Time 00:36:32 Cumulative 334.9 hours Start 2022.02.04 @ 23:28:48 End 2022.02.05 @ 19:33:16 Sessions 2 Manual Loads 0 Difficulty Rogue Special Mode None Game No. 273 Rogue 273 Adventurer 0 Explorer 0 Win Type - Total 6 Types 5/0/1/0/0/0/0/0/0 Lore% 55 Gallery% 78 Achievement% 62 Wizard Run 0 Options --------- ASCII 0 Keyboard 0 Movement Numpad Keybinds 0 Fullscreen 2 Font 18/TerminusBold Map View 76x50 Tactical HUD 1 Map Filters NONE Filters NONE Steam 1 RUN: 4a1f1ed4-f63f-4351-9a7b-503211c79e58